fUST/lending_fUST_20260325
["ID","MTS","AMOUNT","RATE_DAILY","PERIOD"]
[408897117,1774408231982,-590.0,0.00012044,2]
[408897119,1774408231993,-500.0,0.0001229,2]
[408897121,1774408232004,-209.22417066,0.00012539,2]
[408897124,1774408232014,-1000.0,0.00013699,2]
[408897125,1774408232024,-300.0,0.00014125,2]
[408897128,1774408232038,-300.0,0.00014125,2]
[408897130,1774408232049,-300.0,0.00014125,2]
[408897134,1774408232058,-300.0,0.00014125,2]
[408897136,1774408232069,-300.0,0.00014126,2]
[408897140,1774408232079,-6219.89401991,0.00014126,2]
[408897143,1774408232091,-784.76262155,0.00014126,2]
[408897145,1774408232102,-1502.56373526,0.00014126,2]
[408897147,1774408232111,-3.55956953,0.0001413,2]
[408897224,1774408238052,-409.18490883,0.0001413,2]
[408897232,1774408238110,-90.99651555,0.0001413,2]
[408897234,1774408238120,-327.0,0.00015473,2]
[408897236,1774408238129,-184.0,0.00015482,2]
[408897238,1774408238139,-439.0,0.00015482,2]
[408897240,1774408238148,-7515.6193034,0.00016158,2]
[408897242,1774408238157,-161.46465998,0.00016174,2]
[408897244,1774408238166,-290.63638796,0.00016174,2]
[408897246,1774408238176,-980.87,0.00016438,2]
[408897247,1774408238185,-1897.0,0.00016739,2]
[408897248,1774408238195,-151.0,0.00016909,2]
[408897250,1774408238204,-151.0,0.00016909,2]
[408897252,1774408238213,-214.7664239,0.00016985,2]
[408897254,1774408238223,-1000.0,0.0001702,2]
[408897255,1774408238232,-316.65493708,0.00017025,2]
[408897256,1774408238241,-569.97888674,0.00017025,2]
[408897257,1774408238251,-1013.29579865,0.00017025,2]
[408897258,1774408238260,-244.75126191,0.00017233,2]
[408897259,1774408238270,-516.17022502,0.00017329,2]
[408897260,1774408238279,-180.352519,0.00017563,2]
[408897261,1774408238289,-600.0,0.00017645,2]
[408897262,1774408238298,-500.0,0.00017654,2]
[408897263,1774408238308,-2150.738,0.00017662,2]
[408897264,1774408238317,-151.0,0.00017675,2]
[408897265,1774408238326,-151.0,0.00017675,2]
[408897266,1774408238335,-151.0,0.00017675,2]
[408897267,1774408238345,-151.0712889,0.00017675,2]
[408897268,1774408238355,-151.0865058,0.00017675,2]
[408897269,1774408238364,-151.0,0.00017675,2]
[408897270,1774408238373,-151.0,0.00017675,2]
[408897271,1774408238383,-151.0,0.00017675,2]
[408897272,1774408238392,-151.0,0.00017675,2]
[408897273,1774408238402,-218.3642496,0.00017675,2]
[408897274,1774408238412,-151.036831,0.00017675,2]
[408897275,1774408238422,-151.514475,0.00017731,2]
[408897276,1774408238432,-151.0,0.00017731,2]
[408897277,1774408238441,-151.0,0.00017731,2]
[408897278,1774408238450,-151.0,0.00017731,2]
[408897279,1774408238459,-151.0,0.00017731,2]
[408897280,1774408238468,-151.0,0.00017731,2]
[408897281,1774408238478,-151.0,0.00017731,2]
[408897282,1774408238487,-160.0,0.00017876,3]
[408897283,1774408238497,-243.60322045,0.0001789,3]
[408897284,1774408238506,-160.0,0.00018085,4]
[408897285,1774408238515,-479.51170091,0.0001814,3]
[408897286,1774408238524,-937.33264408,0.0001821,2]
[408897287,1774408238533,-160.0,0.00018295,5]
[408897288,1774408238542,-521.633,0.00018295,2]
[408897289,1774408238552,-315.47207492,0.00018431,30]
[408897290,1774408238561,-184.0,0.00018482,2]
[408897291,1774408238571,-439.0,0.00018482,2]
[408897292,1774408238579,-454.8390096,0.00018497,2]
[408897293,1774408238589,-454.9280236,0.00018497,2]
[408897294,1774408238598,-160.0,0.00018504,6]
[408897295,1774408238607,-151.54326556,0.0001863,3]
[408897296,1774408238616,-160.0,0.00018714,7]
[408897297,1774408238626,-160.0,0.00018924,8]
[408897298,1774408238635,-505.95096701,0.00018973,2]
[408897299,1774408238644,-502.50027621,0.00018973,2]
[408897300,1774408238654,-256.3622227,0.00018977,2]
[408897301,1774408238663,-500.0,0.00018977,2]
[408897302,1774408238671,-429.5992604,0.00018977,2]
[408897303,1774408238681,-443.06469538,0.00018978,2]
[408897304,1774408238690,-5525.31611364,0.00018978,2]
[408897305,1774408238701,-4783.18568281,0.00018978,2]
[408897306,1774408238712,-24183.22002737,0.00018978,2]
[408897307,1774408238723,-18613.46250149,0.00018978,2]
[408897347,1774408240475,-341.44406342,0.00018978,5]
[408897348,1774408240486,-1476.55593658,0.00018978,5]
[408897349,1774408240495,-1951.88971912,0.00018978,2]
[408897350,1774408240528,-495.840245,0.00018978,2]
[408897388,1774408243160,-760.69687761,0.00018978,5]
[408897428,1774408246005,-1641.0,0.00018978,5]
[408897429,1774408246014,-6462.97697068,0.00018978,2]
[408897430,1774408246060,-1209.79618404,0.00018978,2]
[408897438,1774408532994,-5000.0,0.00011974,2]
[408897439,1774408547156,5000.0,0.00012,2]
[408897441,1774408569154,5000.0,0.00012,2]
[408897442,1774408591086,5000.0,0.00012,2]
[408897443,1774408613666,5000.0,0.00012,2]
[408897444,1774408635575,1010.00593086,0.00012,2]
[408897445,1774408658233,5000.0,0.00012,2]
[408897446,1774408698409,-500.0,0.00012095,2]
[408897447,1774408698605,-500.0,0.00012732,2]
[408897448,1774408778625,257.0,0.00010192,2]
[408897449,1774408779973,257.0,0.00011192,2]
[408897450,1774408797740,-257.0,0.00012192,2]
[408897451,1774408857942,-607.0,0.00013192,2]
[408897452,1774408857965,-257.0,0.00013192,2]
[408897453,1774408857992,-136.0,0.00013369,2]
[408897454,1774408859297,-46.19984125,0.00013369,2]
[408897455,1774408859317,-953.80015875,0.00013699,2]
[408897456,1774408860466,-46.19984125,0.00013699,2]
[408897457,1774408986775,-257.0,0.00014192,2]
[408897458,1774408986798,-743.0,0.00014306,2]
[408897459,1774408989461,-1000.0,0.00014306,2]
[408897460,1774408994426,-230.10603206,0.00014306,2]
[408897461,1774408994447,-769.89396794,0.00014406,2]
[408897464,1774409072115,-1000.0,0.00014406,2]
[408897465,1774409107867,-600.0,0.00014406,2]
[408897467,1774409140692,-1000.0,0.00014406,2]
[408897468,1774409210632,-873.15288001,0.00014406,2]
[408897469,1774409210657,-126.84711999,0.00014706,2]
[408897470,1774409217413,-1000.0,0.00014706,2]
[408897471,1774409251129,-1000.0,0.00013699,2]
[408897473,1774409267807,-1000.0,0.00014706,2]
[408897474,1774409270734,-1000.0,0.00014706,2]
[408897482,1774409404132,10000.0,0.00012,2]
[408897483,1774409415868,8475.99406914,0.00012,2]
[408897484,1774409424633,-753.37720169,0.00012,2]
[408897519,1774409432094,-770.62872917,0.00012,2]
[408897521,1774409432104,-2.99333729,0.00014606,2]
[408897524,1774409432115,-163.67332939,0.00014606,2]
[408897526,1774409432125,-941.92586776,0.00014705,2]
[408897530,1774409432154,-258.07413224,0.00014705,2]
[408897532,1774409432164,-2048.16831881,0.00014706,2]
[408897534,1774409432173,-157.33351372,0.00014706,2]
[408897539,1774409432211,-2.28648628,0.00014706,2]
[408897541,1774409432220,-631.0,0.00014706,2]
[408897543,1774409432229,-300.0,0.00014997,2]
[408897545,1774409432238,-300.0,0.00014997,2]
[408897547,1774409432247,-300.0,0.00014997,2]
[408897549,1774409432257,-300.0,0.00014997,2]
[408897551,1774409432266,-300.0,0.00014999,2]
[408897553,1774409432275,-300.0,0.00014999,2]
[408897555,1774409432284,-300.0,0.00014999,2]
[408897557,1774409432292,-300.0,0.00014999,2]
[408897559,1774409432302,-300.0,0.00014999,2]
[408897561,1774409432312,-300.0,0.00014999,2]
[408897563,1774409432321,-300.0,0.00014999,2]
[408897565,1774409432331,-300.0,0.00014999,2]
[408897567,1774409432340,-300.0,0.00014999,2]
[408897570,1774409432352,-222.46667529,0.00014999,2]
[408897657,1774409438264,-166.66666666,0.00015103,2]
[408897658,1774409438274,-275.58583935,0.00015192,2]
[408897659,1774409438283,-165.1248347,0.00015647,2]
[408897661,1774409438292,-273.156,0.00015699,2]
[408897663,1774409438302,-223.63758729,0.00015699,2]
[408897665,1774409438313,-215.36241271,0.00015699,2]
[408897666,1774409438324,-1306.09238709,0.00015996,2]
[408897691,1774409443316,-1107.9990059,0.00015996,2]
[408897692,1774409443329,-7585.90860701,0.00015996,2]
[408897693,1774409443339,-1200.0,0.00016175,2]
[408897694,1774409443349,-300.0,0.00016413,2]
[408897695,1774409443358,-1642.0,0.00016692,2]
[408897696,1774409443368,-490.98,0.00017025,2]
[408897697,1774409443379,-160.0,0.00018015,3]
[408897698,1774409443388,-1043.0253543,0.0001803,2]
[408897699,1774409443399,-209.58810928,0.00018031,2]
[408897700,1774409443408,-3267.24988453,0.00018031,2]
[408897701,1774409443418,-504.43822491,0.0001813,2]
[408897702,1774409443428,-500.0,0.0001813,2]
[408897703,1774409443437,-468.11847831,0.0001813,2]
[408897709,1774409446249,-31.88152169,0.0001813,2]
[408897710,1774409446259,-500.0,0.0001813,2]
[408897711,1774409446268,-500.0,0.0001813,2]
[408897712,1774409446278,-300.68181773,0.0001813,2]
[408897713,1774409446288,-500.0,0.0001813,2]
[408897714,1774409446298,-500.0,0.0001813,2]
[408897715,1774409446308,-159.69460317,0.0001813,2]
[408897716,1774409446436,-224.530887,0.0001813,2]
[408897717,1774409446447,-650.71948228,0.0001813,2]
[408897718,1774409446458,-500.0,0.0001813,2]
[408897719,1774409446467,-400.91776334,0.0001813,2]
[408897720,1774409446476,-1505.0,0.0001813,5]
[408897721,1774409446485,-1703.13085191,0.00018131,2]
[408897722,1774409446497,-2698.36006599,0.00018131,2]
[408897723,1774409446512,-17181.61880355,0.00018131,2]
[408897760,1774410632266,-269.08724583,0.00012041,2]
[408897762,1774410632277,-54.10833627,0.00012041,2]
[408897765,1774410632287,-1912.01141316,0.00012141,2]
[408897767,1774410632298,-1163.34750901,0.00012141,2]
[408897872,1774410647146,-1924.64107783,0.00012141,2]
[408897873,1774410647157,-2306.13537923,0.00012264,2]
[408897874,1774410647168,-593.0,0.00012264,2]
[408897875,1774410647178,-176.22354294,0.00012387,2]
[408897876,1774410647202,-1023.77645706,0.00012387,2]
[408897877,1774410647213,-1000.0,0.00013699,2]
[408897878,1774410647223,-1000.0,0.00015642,2]
[408897879,1774410647233,-454.2268731,0.00015736,2]
[408897880,1774410647243,-1511.0,0.00016692,2]
[408897881,1774410647253,-392.784,0.00017025,2]
[408897882,1774410647264,-5333.04600317,0.00017025,2]
[408897883,1774410869210,260.0,0.00015,2]
[408897886,1774411168882,-1000.0,9.9e-05,2]
[408897887,1774411170250,-1000.0,9.9e-05,2]
[408897888,1774411171129,-1000.0,9.9e-05,2]
[408897889,1774411172144,-1000.0,9.9e-05,2]
[408897890,1774411173105,-1000.0,9.9e-05,2]
[408897891,1774411174085,-300.0,9.999e-05,2]
[408897892,1774411174105,-237.15953673,0.0001,2]
[408897893,1774411174126,-462.84046327,0.0001,2]
[408897894,1774411175393,-1000.0,0.0001,2]
[408897895,1774411176505,-1000.0,0.0001,2]
[408897896,1774411177562,-1000.0,0.0001,2]
[408897897,1774411178782,-1000.0,0.0001,2]
[408897898,1774411196941,-1000.0,0.00010097,2]
[408897899,1774411197950,-1000.0,0.00010097,2]
[408897900,1774411198970,-1000.0,0.00010097,2]
[408897901,1774411199959,-1000.0,0.00010097,2]
[408897902,1774411200963,-1000.0,0.00010097,2]
[408898005,1774411838498,-1200.0,0.00012513,2]
[408898006,1774411838508,-5000.0,0.00012514,2]
[408898007,1774411838517,-597.0,0.00012514,2]
[408898008,1774411838526,-5000.0,0.0001264,2]
[408898009,1774411838535,-300.0,0.00012766,2]
[408898010,1774411838548,-300.0,0.00012766,2]
[408898011,1774411838557,-300.0,0.00012766,2]
[408898012,1774411838567,-300.0,0.00012766,2]
[408898013,1774411838576,-1607.40886826,0.00012768,2]
[408898014,1774411838585,-1761.96896504,0.00013,2]
[408898015,1774411838594,-3833.94618169,0.000131,2]
[408898016,1774411838603,-3828.18943007,0.000132,2]
[408898017,1774411838614,-419.74338702,0.000132,2]
[408898018,1774411838624,-4289.66547078,0.000133,2]
[408898019,1774411838633,-5075.90608811,0.000135,2]
[408898020,1774411838642,-955.98503698,0.00013599,2]
[408898021,1774411838651,-1000.0,0.00013699,2]
[408898022,1774411838660,-1200.0,0.00013764,2]
[408898023,1774411838669,-300.0,0.00014003,2]
[408898024,1774411838678,-420.0,0.00014003,2]
[408898025,1774411838687,-300.0,0.00014003,2]
[408898026,1774411838695,-300.0,0.00015361,2]
[408898027,1774411838705,-184.0,0.00015801,2]
[408898028,1774411838714,-955.98503696,0.00015856,2]
[408898029,1774411838723,-1955.3943578,0.0001628,2]
[408898030,1774411838732,-1448.0,0.00016351,2]
[408898031,1774411838741,-454.9280236,0.00016853,2]
[408898032,1774411838750,-454.9280236,0.00016909,2]
[408898033,1774411838760,-196.1530332,0.00016909,2]
[408898034,1774411838769,-454.9280236,0.00016909,2]
[408898035,1774411838778,-454.9280236,0.00016909,2]
[408898036,1774411838788,-454.9734141,0.00016909,2]
[408898037,1774411838797,-454.9280236,0.00016909,2]
[408898038,1774411838806,-196.1530332,0.00016909,2]
[408898039,1774411838815,-453.9971034,0.00016909,2]
[408898040,1774411838824,-454.9280237,0.00016909,2]
[408898041,1774411838833,-335.568751,0.00016979,2]
[408898042,1774411838842,-314.227,0.0001702,2]
[408898043,1774411838852,-7348.11690024,0.00017025,2]
[408898044,1774411838864,-1437.21047514,0.00017025,2]
[408898050,1774411841024,-383.26789433,0.00017025,2]
[408898054,1774411841372,-163.59382734,0.00017025,2]
[408898055,1774411841383,-780.13827833,0.00017025,2]
[408898056,1774411841393,-406.82824086,0.00017025,2]
[408898057,1774411841404,-1976.92917908,0.00017025,2]
[408898058,1774411841417,-4162.23942421,0.00017025,2]
[408898059,1774411841427,-250.0,0.00017119,2]
[408898060,1774411841438,-255.63131308,0.00017571,2]
[408898061,1774411841447,-153.80283224,0.00017571,2]
[408898062,1774411841456,-144.4601485,0.00017573,2]
[408898080,1774411846648,-355.5398515,0.00017573,2]
[408898081,1774411846660,-500.0,0.00017573,2]
[408898082,1774411846669,-500.0,0.00017573,2]
[408898083,1774411846679,-501.76519277,0.00017573,2]
[408898084,1774411846689,-500.48874986,0.00017573,2]
[408898085,1774411846698,-500.3082347,0.00017573,2]
[408898086,1774411846707,-212.3986788,0.00017573,2]
[408898087,1774411846716,-500.5519398,0.00017573,2]
[408898088,1774411846726,-503.27583517,0.00017573,2]
[408898089,1774411846736,-502.55584257,0.00017573,2]
[408898090,1774411846746,-595.65325209,0.00017573,2]
[408898091,1774411846756,-1332.0,0.00017573,2]
[408898092,1774411846767,-455.5036376,0.00017599,2]
[408898093,1774411846778,-168.85254632,0.00017599,2]
[408898094,1774411846788,-179.45355589,0.00017599,2]
[408898095,1774411846797,-2698.36006598,0.000176,2]
[408898096,1774411846806,-24610.32297767,0.000176,2]
[408898106,1774412892972,-1000.0,0.00012602,2]
[408898107,1774412894244,-1000.0,0.00012602,2]
[408898108,1774412895131,-1000.0,0.00012602,2]
[408898109,1774412895497,-1000.0,0.00012602,2]
[408898110,1774412895815,-1000.0,0.00012602,2]
[408898111,1774412896119,-300.0,0.00012887,2]
[408898112,1774412896140,-300.0,0.00012887,2]
[408898113,1774412896161,-400.0,0.00012987,2]
[408898114,1774412896478,-800.0,0.00012987,2]
[408898115,1774412896499,-200.0,0.00012989,2]
[408898116,1774412896914,-404.0,0.00012989,2]
[408898117,1774412902589,312.94021068,0.00013,2]
[408898148,1774413031508,-3593.34035661,0.00013562,2]
[408898149,1774413031519,-613.0,0.00013562,2]
[408898150,1774413031528,-1000.0,0.00013699,2]
[408898151,1774413031537,-500.0,0.00014475,2]
[408898152,1774413031547,-196.38904596,0.00014659,2]
[408898153,1774413031557,-165.07264511,0.00014659,2]
[408898154,1774413031567,-1000.0,0.00014743,2]
[408898155,1774413031576,-2394.4123676,0.00015214,2]
[408898156,1774413031585,-454.9280236,0.00016032,2]
[408898157,1774413031595,-184.0,0.00016551,2]
[408898158,1774413031604,-300.0,0.00016586,2]
[408898159,1774413031613,-1249.22150472,0.00016588,2]
[408898160,1774413031624,-27.77849528,0.00016588,2]
[408898161,1774413031634,-518.05863411,0.00016609,2]
[408898170,1774413037676,-2601.54438766,0.00016609,2]
[408898171,1774413037733,-2712.137328,0.00016609,2]
[408898202,1774413043001,-648.33,0.00016609,2]
[408898206,1774413045852,-484.14,0.00016443,2]
[408898207,1774413045863,-3071.97546514,0.00016443,2]
[408898208,1774413045875,-1443.88453486,0.00016443,2]
[408898209,1774413045884,-782.7193379,0.00016609,2]
[408898210,1774413157842,-500.0,0.00013278,2]
[408898211,1774413157869,-324.7426577,0.00016087,2]
[408898212,1774413157894,-387.84460359,0.00016087,2]
[408898213,1774413157907,-67.08342001,0.00016087,2]
[408898214,1774413157916,-251.381,0.00016277,2]
[408898215,1774413157925,-181.53557999,0.00016443,2]
[408898216,1774413157936,-324.7426577,0.00016443,2]
[408898217,1774413157946,-454.9280236,0.00016443,2]
[408898279,1774414231721,-4219.24422592,0.00013027,2]
[408898281,1774414231731,-755.88313342,0.00013699,2]
[408898283,1774414231743,-244.11686658,0.00013699,2]
[408898284,1774414231753,-387.75577408,0.00013804,2]
[408898287,1774414231775,-20.67,0.00013804,2]
[408898426,1774414237808,-91.57422592,0.00013804,2]
[408898428,1774414237818,-1241.45621223,0.00015338,2]
[408898435,1774414237919,-4820.51970832,0.00015338,2]
[408898436,1774414240263,-2288.72719031,0.00015338,2]
[408898442,1774414244842,-1649.29688914,0.00015338,2]
[408898445,1774414244856,-567.0221657,0.00015431,2]
[408898447,1774414244868,-454.9280236,0.00016032,2]
[408898449,1774414244878,-454.9280236,0.00016032,2]
[408898451,1774414244889,-196.1530332,0.00016032,2]
[408898453,1774414244901,-454.9280236,0.00016032,2]
[408898455,1774414244912,-196.1530332,0.00016032,2]
[408898457,1774414244923,-195.9353996,0.00016032,2]
[408898460,1774414244933,-196.1748999,0.00016032,2]
[408898462,1774414244944,-454.9280236,0.00016032,2]
[408898464,1774414244955,-196.1530332,0.00016032,2]
[408898466,1774414244966,-454.9280236,0.00016032,2]
[408898468,1774414244977,-196.1530332,0.00016032,2]
[408898470,1774414244988,-196.1530332,0.00016032,2]
[408898473,1774414244999,-454.9280236,0.00016032,2]
[408898475,1774414245012,-324.7426577,0.00016032,2]
[408898477,1774414245023,-197.7172924,0.00016032,2]
[408898479,1774414245035,-196.1530332,0.00016032,2]
[408898482,1774414245045,-324.7865589,0.00016032,2]
[408898484,1774414245055,-196.1530332,0.00016032,2]
[408898486,1774414245064,-175.3128322,0.00016087,2]
[408898488,1774414245074,-174.9874809,0.00016087,2]
[408898490,1774414245083,-454.9280236,0.00016087,2]
[408898492,1774414245094,-454.9280236,0.00016087,2]
[408898494,1774414245103,-196.1708088,0.00016087,2]
[408898496,1774414245113,-324.7756632,0.00016087,2]
[408898498,1774414245123,-324.7426577,0.00016087,2]
[408898500,1774414245134,-454.9280236,0.00016087,2]
[408898502,1774414245144,-196.1530332,0.00016087,2]
[408898504,1774414245155,-454.9280236,0.00016087,2]
[408898506,1774414245167,-324.7426577,0.00016087,2]
[408898508,1774414245178,-324.7173046,0.00016087,2]
[408898511,1774414245189,-196.513047,0.00016087,2]
[408898513,1774414245200,-196.1530332,0.00016087,2]
[408898515,1774414245210,-195.8040061,0.00016087,2]
[408898517,1774414245219,-228.59283659,0.00016508,2]
[408898519,1774414245230,-201.105,0.00016508,2]
[408898521,1774414245240,-654.7,0.00016509,2]
[408898523,1774414245251,-654.7,0.00016509,2]
[408898525,1774414245262,-654.7,0.00016509,2]
[408898527,1774414245273,-654.7,0.00016509,2]
[408898530,1774414245283,-654.7,0.00016509,2]
[408898532,1774414245294,-654.7,0.00016509,2]
[408898534,1774414245304,-654.7,0.00016509,2]
[408898536,1774414245314,-654.7,0.00016509,2]
[408898538,1774414245323,-726.99,0.00016509,2]
[408898540,1774414245332,-151.0,0.00016509,2]
[408898542,1774414245342,-151.0,0.00016509,2]
[408898544,1774414245352,-613.183653,0.00016509,2]
[408898546,1774414245362,-403.36988145,0.00016509,2]
[408898586,1774414245968,-209.81377155,0.00016509,2]
[408898587,1774414245979,-613.183653,0.00016509,2]
[408898588,1774414245989,-352.2092284,0.00016509,2]
[408898651,1774414574485,-1000.0,0.00013699,2]
[408898652,1774414640383,-1000.0,0.00014406,2]
[408898653,1774414676835,-500.0,0.00014397,2]
[408898654,1774414676857,-200.0,0.00014406,2]
[408898655,1774414676877,-300.0,0.00014506,2]
[408898656,1774414708687,-1000.0,0.00014623,2]
[408898657,1774414730247,-439.11693474,0.00014623,2]
[408898658,1774414730271,-560.88306526,0.00014723,2]
[408898659,1774414835295,-1000.0,0.00013426,2]
[408898660,1774414839451,-1000.0,0.00013426,2]
[408898661,1774414840522,-490.58133119,0.00013426,2]
[408898662,1774414840543,-509.41866881,0.00013462,2]
[408898663,1774414841512,-1000.0,0.00013462,2]
[408898664,1774414842497,-1000.0,0.00013462,2]
[408898665,1774414849803,-250.0,0.00013462,2]
[408898693,1774415432031,-644.35719446,0.00013159,2]
[408898699,1774415432086,-951.05950589,0.00013159,2]
[408898701,1774415432097,-528.35228472,0.00013159,2]
[408898719,1774415438181,-2876.23101493,0.00013159,2]
[408898720,1774415438194,-607.0,0.00013159,2]
[408898721,1774415438209,-1000.0,0.00013699,2]
[408898722,1774415438218,-300.0,0.00014722,2]
[408898723,1774415438228,-2617.83042275,0.00014723,2]
[408898724,1774415438239,-500.0,0.00014723,2]
[408898725,1774415438248,-500.0,0.00014723,2]
[408898726,1774415438258,-246.6961342,0.00014723,2]
[408898727,1774415438268,-3478.88974823,0.00014823,2]
[408898728,1774415438277,-3512.34501728,0.00014923,2]
[408898729,1774415438289,-3845.97654665,0.00015023,3]
[408898730,1774415438299,-454.9734141,0.0001521,2]
[408898731,1774415438309,-454.9280236,0.0001521,2]
[408898732,1774415438321,-196.1530332,0.0001521,2]
[408898733,1774415438332,-454.9734141,0.0001521,2]
[408898734,1774415438342,-324.7756632,0.00015265,2]
[408898735,1774415438352,-1223.0,0.00015915,2]
[408898736,1774415438361,-758.73102123,0.00015932,2]
[408898737,1774415438371,-324.7426577,0.00016032,2]
[408898738,1774415438380,-196.1530332,0.00016032,2]
[408898739,1774415438390,-196.1708088,0.00016032,2]
[408898740,1774415438399,-456.367309,0.00016032,2]
[408898741,1774415438408,-196.1530332,0.00016032,2]
[408898742,1774415438418,-196.1708088,0.00016032,2]
[408898743,1774415438428,-454.8154698,0.00016032,2]
[408898744,1774415438438,-196.0287636,0.00016032,2]
[408898745,1774415438447,-454.9897696,0.00016032,2]
[408898746,1774415438457,-196.0902127,0.00016032,2]
[408898747,1774415438466,-196.1530332,0.00016032,2]
[408898748,1774415438476,-324.7756632,0.00016032,2]
[408898749,1774415438485,-196.1530332,0.00016032,2]
[408898750,1774415438495,-324.7426577,0.00016032,2]
[408898751,1774415438505,-196.1282202,0.00016032,2]
[408898752,1774415438514,-196.1021434,0.00016032,2]
[408898753,1774415438523,-454.9734141,0.00016032,2]
[408898754,1774415438532,-196.1530332,0.00016032,2]
[408898755,1774415438542,-196.1530332,0.00016032,2]
[408898756,1774415438551,-196.1530332,0.00016032,2]
[408898757,1774415438560,-196.1530332,0.00016032,2]
[408898758,1774415438569,-196.1530332,0.00016032,2]
[408898759,1774415438578,-454.9897696,0.00016032,2]
[408898760,1774415438588,-167.6787116,0.00016032,2]
[408898761,1774415438597,-196.1530332,0.00016032,2]
[408898762,1774415438606,-454.9280236,0.00016032,2]
[408898763,1774415438615,-196.1530332,0.00016032,2]
[408898764,1774415438624,-196.1530332,0.00016032,2]
[408898765,1774415438633,-454.9280236,0.00016032,2]
[408898766,1774415438642,-324.7325339,0.00016032,2]
[408898767,1774415438652,-324.7426577,0.00016032,2]
[408898768,1774415438661,-324.7756632,0.00016032,2]
[408898769,1774415438670,-512.84546372,0.00016033,2]
[408898770,1774415438680,-196.1530332,0.00016033,2]
[408898772,1774415438689,-196.1530332,0.00016036,2]
[408898773,1774415438698,-196.1708088,0.00016087,2]
[408898775,1774415438708,-324.7426577,0.00016087,2]
[408898777,1774415438716,-196.1530332,0.00016087,2]
[408898778,1774415438726,-324.7426577,0.00016087,2]
[408898780,1774415438735,-270.0,0.00016117,2]
[408898782,1774415438745,-326.560858,0.00016135,2]
[408898783,1774415438754,-180.73762887,0.00016171,2]
[408898784,1774415438763,-325.32773197,0.00016171,2]
[408898785,1774415438772,-151.0,0.00016438,2]
[408898787,1774415438782,-151.0,0.00016438,2]
[408898788,1774415438791,-282.125657,0.00016438,2]
[408898789,1774415438801,-562.355976,0.00016438,2]
[408898790,1774415438811,-562.355976,0.00016438,2]
[408898791,1774415438820,-562.355976,0.00016438,2]
[408898792,1774415438829,-562.355976,0.00016438,2]
[408898793,1774415438839,-151.0,0.00016438,2]
[408898794,1774415438848,-151.0,0.00016438,2]
[408898795,1774415438857,-151.0,0.00016438,2]
[408898796,1774415438867,-151.0,0.00016438,2]
[408898797,1774415438876,-151.0,0.00016438,2]
[408898798,1774415438885,-647.60179067,0.00016438,2]
[408898811,1774415440673,-7.3747272,0.00015195,2]
[408898978,1774415446192,-272.62733558,0.00015195,2]
[408899043,1774416637296,-891.0,8.749e-05,2]
[408899046,1774416637356,-500.0,8.749e-05,2]
[408899051,1774416638303,-3583.73877053,8.749e-05,2]
[408899052,1774416638317,-25.26122947,8.749e-05,2]
[408899053,1774416638326,-154.0,9.199e-05,2]
[408899054,1774416638335,-157.74471797,0.00010199,2]
[408899055,1774416638344,-1000.0,0.00013699,2]
[408899056,1774416638354,-262.47847594,0.00014124,2]
[408899057,1774416638363,-296.07052579,0.00014721,2]
[408899058,1774416638372,-577.78205197,0.00014721,2]
[408899059,1774416638382,-719.99793722,0.00015195,2]
[408899060,1774416638392,-454.9280236,0.0001521,2]
[408899061,1774416638401,-196.1530334,0.00016032,2]
[408899062,1774416638410,-196.1333343,0.00016032,2]
[408899063,1774416638420,-324.7426577,0.00016032,2]
[408899064,1774416638429,-324.7756632,0.00016032,2]
[408899065,1774416638438,-454.9734141,0.00016032,2]
[408899066,1774416638447,-324.7756632,0.00016032,2]
[408899067,1774416638456,-324.7426577,0.00016032,2]
[408899068,1774416638465,-324.7426577,0.00016032,2]
[408899069,1774416638474,-196.1530332,0.00016032,2]
[408899070,1774416638483,-324.727049,0.00016032,2]